fUSD/lending_fUSD_20260315
["ID","MTS","AMOUNT","RATE_DAILY","PERIOD"]
[408413849,1773581432348,-544.01370364,0.00015077,2]
[408413850,1773581432357,-1000.0,0.00015077,2]
[408413851,1773581432366,-510.82473886,0.00015077,2]
[408413852,1773581432375,-365.80616418,0.00015077,2]
[408413853,1773581432384,-1000.0,0.00015077,2]
[408413854,1773581432394,-220.44009406,0.00015085,2]
[408413855,1773581432403,-1000.0,0.00015085,2]
[408413856,1773581432413,-166.66,0.00015107,2]
[408413857,1773581432422,-1000.0,0.00015123,2]
[408413858,1773581432431,-640.3340267,0.00015148,2]
[408413859,1773581432440,-1000.0,0.00015148,2]
[408413860,1773581432449,-663.51,0.00015165,2]
[408413861,1773581432458,-166.66,0.000154,2]
[408413862,1773581432468,-196.61,0.00015427,2]
[408413863,1773581432477,-663.51,0.00015439,2]
[408413864,1773581432487,-1084.42974455,0.00015624,2]
[408413865,1773581432496,-1000.0,0.00015624,2]
[408413866,1773581432506,-1531.23647265,0.00015671,2]
[408413867,1773581432516,-663.51,0.00015713,2]
[408413868,1773581432526,-210.8831,0.00015881,2]
[408413869,1773581432536,-2500.0,0.00015881,2]
[408413870,1773581432545,-6494.43060182,0.00015881,2]
[408413871,1773581432555,-9489.67710919,0.00015881,2]
[408413872,1773581432564,-800.0,0.000159,5]
[408413873,1773581432574,-503.38689144,0.00015973,2]
[408413874,1773581432583,-502.0907168,0.00015973,2]
[408413875,1773581432592,-505.62043158,0.00015973,2]
[408413876,1773581432601,-500.0,0.00015973,2]
[408413877,1773581432611,-500.0,0.00015973,2]
[408413878,1773581432620,-500.0,0.00015973,2]
[408413879,1773581432629,-503.67175726,0.00015973,2]
[408413880,1773581432640,-500.0,0.00015973,2]
[408413881,1773581432649,-500.0,0.0001598,2]
[408413882,1773581432658,-500.0,0.0001598,2]
[408413883,1773581432667,-500.0,0.0001598,2]
[408413884,1773581432677,-500.0,0.0001598,2]
[408413885,1773581432687,-500.0,0.0001598,2]
[408413886,1773581432697,-500.0,0.0001598,2]
[408413887,1773581432708,-500.0,0.0001598,2]
[408413888,1773581432718,-500.0,0.0001598,2]
[408413889,1773581432727,-500.0,0.0001598,2]
[408413890,1773581432736,-500.0,0.0001598,2]
[408413891,1773581432746,-500.0,0.0001598,2]
[408413892,1773581432756,-500.0,0.0001598,2]
[408413893,1773581432766,-500.0,0.0001598,2]
[408413894,1773581432776,-500.0,0.0001598,2]
[408413895,1773581432785,-500.0,0.0001598,2]
[408413896,1773581432795,-500.0,0.0001598,2]
[408413897,1773581432804,-500.0,0.0001598,2]
[408413898,1773581432813,-500.0,0.0001598,2]
[408413899,1773581432822,-500.0,0.0001598,2]
[408413900,1773581432831,-500.0,0.0001598,2]
[408413901,1773581432840,-500.0,0.0001598,2]
[408413902,1773581432849,-500.0,0.0001598,2]
[408413903,1773581432858,-500.0,0.0001598,2]
[408413904,1773581432867,-500.0,0.0001598,2]
[408413905,1773581432876,-500.0,0.0001598,2]
[408413906,1773581432885,-500.0,0.0001598,2]
[408413907,1773581432894,-500.0,0.0001598,2]
[408413908,1773581432903,-500.0,0.0001598,2]
[408413909,1773581432912,-500.0,0.0001598,2]
[408413910,1773581432922,-500.0,0.0001598,2]
[408413911,1773581432934,-500.0,0.0001598,2]
[408413912,1773581432944,-500.0,0.0001598,2]
[408413913,1773581432953,-500.0,0.0001598,2]
[408413914,1773581432962,-500.0,0.0001598,2]
[408413915,1773581432971,-500.0,0.0001598,2]
[408413916,1773581432980,-500.0,0.0001598,2]
[408413917,1773581432989,-500.0,0.0001598,2]
[408413918,1773581432998,-500.0,0.0001598,2]
[408413919,1773581433007,-500.0,0.0001598,2]
[408413920,1773581433015,-500.0,0.0001598,2]
[408413921,1773581433024,-500.0,0.0001598,2]
[408413922,1773581433034,-500.0,0.0001598,2]
[408413923,1773581433044,-496.78794099,0.0001598,2]
[408413924,1773581433054,-500.0,0.0001598,2]
[408413925,1773581433063,-500.0,0.0001598,2]
[408413926,1773581433072,-500.0,0.0001598,2]
[408413927,1773581433081,-500.0,0.0001598,2]
[408413928,1773581433090,-500.0,0.0001598,2]
[408413929,1773581433099,-500.0,0.0001598,2]
[408413930,1773581433108,-300.0,0.0001598,2]
[408413931,1773581433117,-187.15183684,0.0001598,2]
[408413932,1773581433126,-500.0,0.0001598,2]
[408413933,1773581433135,-236.39205877,0.0001598,2]
[408413934,1773581433145,-429.15090928,0.0001598,2]
[408413935,1773581433154,-500.0,0.0001598,2]
[408413936,1773581433163,-322.57770439,0.0001598,2]
[408413937,1773581433172,-500.0,0.0001598,2]
[408413938,1773581433182,-507.82734727,0.0001598,2]
[408413939,1773581433193,-500.0,0.0001598,2]
[408413940,1773581433203,-500.0,0.0001598,2]
[408413941,1773581433214,-500.0,0.0001598,2]
[408413942,1773581433223,-500.0,0.0001598,2]
[408413943,1773581433233,-500.0,0.0001598,2]
[408413944,1773581433242,-500.0,0.0001598,2]
[408413945,1773581433251,-500.0,0.0001598,2]
[408413946,1773581433260,-500.0,0.0001598,2]
[408413947,1773581433270,-500.0,0.0001598,2]
[408413948,1773581433278,-500.0,0.0001598,2]
[408413949,1773581433287,-500.0,0.0001598,2]
[408413950,1773581433296,-500.0,0.0001598,2]
[408413951,1773581433305,-500.0,0.0001598,2]
[408413952,1773581433315,-500.0,0.0001598,2]
[408413953,1773581433324,-500.0,0.0001598,2]
[408413954,1773581433333,-500.0,0.0001598,2]
[408413955,1773581433343,-502.23147236,0.0001598,2]
[408413956,1773581433353,-510.91763486,0.0001598,2]
[408413957,1773581433363,-1000.0,0.00015981,2]
[408413958,1773581433371,-329069.5019,0.00015981,2]
[408413959,1773581433381,-559.2098,0.00015981,2]
[408413960,1773581433390,-10748.5977,0.00015981,2]
[408413961,1773581433399,-663.51,0.00015987,2]
[408413962,1773581433409,-296.03,0.00016028,2]
[408413963,1773581433419,-297.01217445,0.00016073,2]
[408413964,1773581433429,-398.50152088,0.00016073,2]
[408413965,1773581433439,-500.0,0.00016073,2]
[408413966,1773581433448,-502.15971815,0.00016073,2]
[408413967,1773581433457,-501.48612057,0.00016073,2]
[408413968,1773581433466,-151.0,0.00016078,2]
[408413969,1773581433476,-2351.0,0.00016078,2]
[408413970,1773581433489,-500.0,0.00016079,2]
[408413971,1773581433498,-500.0,0.00016079,2]
[408413972,1773581433508,-500.0,0.00016079,2]
[408413973,1773581433517,-500.0,0.00016079,2]
[408413974,1773581433526,-316.9592707,0.0001608,2]
[408413975,1773581433536,-205110.7751808,0.0001608,2]
[408413976,1773581433547,-64670.2413304,0.0001608,2]
[408413977,1773581433556,-6564.4701362,0.0001608,2]
[408413978,1773581433566,-168279.9210067,0.0001608,2]
[408413979,1773581433575,-151.0,0.0001608,2]
[408413980,1773581433584,-151.0,0.0001608,2]
[408413981,1773581433594,-155.372088,0.0001608,2]
[408413982,1773581433604,-153.875058,0.0001608,2]
[408413983,1773581433614,-151.0,0.0001608,2]
[408413984,1773581433623,-7951.96,0.00016116,2]
[408413985,1773581433633,-1134.53,0.00016145,2]
[408413986,1773581433642,-7796.19848285,0.000162,5]
[408413987,1773581433652,-663.51,0.00016261,2]
[408413988,1773581433662,-615.8329075,0.00016278,2]
[408413989,1773581433672,-524.24576923,0.00016278,2]
[408413990,1773581433682,-505.11042476,0.00016278,2]
[408413991,1773581433692,-502.29808326,0.00016278,2]
[408413992,1773581433705,-511.07243209,0.00016278,2]
[408413993,1773581433714,-518.99505939,0.00016278,2]
[408413994,1773581433723,-459.56105253,0.00016278,2]
[408413995,1773581433732,-1023.84344747,0.00016381,2]
[408413996,1773581433742,-179.366668,0.00016438,2]
[408413997,1773581433752,-212.797635,0.00016438,2]
[408413998,1773581433761,-152.15,0.00016444,2]
[408413999,1773581433771,-1134.53,0.0001652,2]
[408414000,1773581433780,-1000.0,0.00016521,2]
[408414001,1773581433789,-1002.06348181,0.00016521,2]
[408414002,1773581433799,-514.23929202,0.00016521,2]
[408414003,1773581433808,-663.51,0.00016535,2]
[408414004,1773581433817,-2000.0,0.00016538,2]
[408414005,1773581433826,-303.79637721,0.00016621,2]
[408414006,1773581433835,-196.61,0.00016797,2]
[408414007,1773581433844,-184.5,0.00016802,2]
[408414008,1773581433854,-5000.0,0.000169,2]
[408414009,1773581433863,-216.0,0.00016917,2]
[408414010,1773581434016,-4162.8,0.00017,2]
[408414011,1773581434027,-300.0,0.00017,2]
[408414012,1773581434037,-517.0,0.00017,2]
[408414013,1773581434048,-1004.77307039,0.00017068,2]
[408414014,1773581434059,-258.0,0.00017096,2]
[408414015,1773581434068,-2000.0,0.0001715,2]
[408414016,1773581434079,-1384.22,0.0001758,2]
[408414017,1773581434089,-250.0,0.00017666,2]
[408414018,1773581434099,-3292.0,0.00017686,2]
[408414019,1773581434109,-9999.99,0.00017728,2]
[408414020,1773581434118,-150.99,0.00017728,2]
[408414021,1773581434127,-150.99,0.00017728,2]
[408414022,1773581434138,-6628.82,0.00017728,2]
[408414023,1773581434147,-55659.96,0.00017728,2]
[408414024,1773581434157,-3905.92,0.00017898,2]
[408414025,1773581434166,-1700.0,0.000179,6]
[408414026,1773581434175,-20397.52993216,0.00017927,2]
[408414027,1773581434184,-152.15,0.00017939,2]
[408414028,1773581434194,-13461.28537283,0.00018,5]
[408414029,1773581434205,-1995.69752331,0.00018078,2]
[408414030,1773581434216,-45766.4001142,0.00018126,2]
[408414031,1773581434226,-14429.8813048,0.00018126,2]
[408414032,1773581434236,-158.410399,0.00018126,2]
[408414033,1773581434245,-151.0,0.00018126,2]
[408414034,1773581434255,-151.0,0.00018126,2]
[408414035,1773581434265,-151.0,0.00018126,2]
[408414036,1773581434274,-151.0,0.00018126,2]
[408414037,1773581434283,-157.019101,0.00018126,2]
[408414038,1773581434292,-182.339934,0.00018126,2]
[408414039,1773581434301,-151.0,0.00018126,2]
[408414040,1773581434311,-151.0,0.00018126,2]
[408414041,1773581434321,-154.74,0.000182,7]
[408414042,1773581434330,-1464.7312727,0.00018223,2]
[408414043,1773581434339,-414.3138,0.00018268,7]
[408414044,1773581434348,-177.563056,0.00018325,7]
[408414045,1773581434359,-193.526751,0.00018493,2]
[408414046,1773581434370,-193.526751,0.00018493,2]
[408414047,1773581434379,-193.526751,0.00018493,2]
[408414048,1773581434389,-193.526751,0.00018493,2]
[408414049,1773581434398,-193.526751,0.00018493,2]
[408414050,1773581434408,-193.526751,0.00018493,2]
[408414051,1773581434417,-500.0,0.00018533,2]
[408414052,1773581434427,-218.26158172,0.00018573,2]
[408414053,1773581434437,-151.0,0.00018582,2]
[408414054,1773581434446,-156.646115,0.00018582,2]
[408414055,1773581434455,-10211.8641869,0.00018582,2]
[408414056,1773581434465,-3219.7417264,0.00018582,2]
[408414057,1773581434475,-9489.67710918,0.00018583,2]
[408414058,1773581434484,-500.0,0.000186,2]
[408414059,1773581434494,-500.0,0.000186,2]
[408414060,1773581434503,-500.0,0.000186,2]
[408414061,1773581434512,-500.0,0.000186,2]
[408414062,1773581434522,-500.0,0.000186,2]
[408414063,1773581434532,-500.0,0.000186,2]
[408414064,1773581434541,-500.0,0.000186,2]
[408414065,1773581434550,-500.0,0.000186,2]
[408414066,1773581434561,-500.0,0.000186,2]
[408414067,1773581434570,-37548.3257239,0.00018699,2]
[408414068,1773581434580,-326.8257234,0.00018702,2]
[408414069,1773581434589,-184.5,0.00018902,2]
[408414070,1773581434599,-2000.0,0.00019056,2]
[408414071,1773581434610,-189.712383,0.00019178,2]
[408414072,1773581434619,-151.0,0.00019178,2]
[408414073,1773581434630,-151.0,0.00019178,2]
[408414074,1773581434639,-151.0,0.00019178,2]
[408414075,1773581434649,-151.0,0.00019178,2]
[408414076,1773581434659,-151.0,0.00019178,2]
[408414077,1773581434668,-151.0,0.00019178,2]
[408414078,1773581434677,-150.0,0.00019178,2]
[408414079,1773581434687,-150.22155762,0.00019178,2]
[408414080,1773581434701,-8378.163932,0.00019284,2]
[408414081,1773581434710,-1594.0,0.00019454,2]
[408414082,1773581434720,-1000.0,0.00019484,2]
[408414083,1773581434730,-1000.0,0.00019484,2]
[408414084,1773581434741,-1000.0,0.00019484,2]
[408414085,1773581434750,-1000.0,0.00019484,2]
[408414086,1773581434760,-1000.0,0.00019484,2]
[408414087,1773581434770,-1000.0,0.00019484,2]
[408414088,1773581434779,-1000.0,0.00019484,2]
[408414089,1773581434789,-1000.0,0.00019484,2]
[408414090,1773581434798,-1000.0,0.00019484,2]
[408414091,1773581434810,-683.012,0.00019484,2]
[408414092,1773581434820,-151.1911095,0.00019726,2]
[408414093,1773581434831,-167.91,0.00019756,2]
[408414094,1773581434840,-167.91,0.00019756,2]
[408414095,1773581434850,-2254.45607999,0.00019776,6]
[408414096,1773581434860,-150.0,0.000198,14]
[408414097,1773581434869,-250.0,0.0001989,4]
[408414098,1773581434879,-500.0,0.00019899,2]
[408414099,1773581434888,-500.0,0.00019899,2]
[408414100,1773581434898,-568.64936411,0.00019899,2]
[408414101,1773581434908,-328.07993756,0.000199,2]
[408414102,1773581434917,-594.81803059,0.000199,2]
[408414103,1773581434927,-2600.0,0.000199,7]
[408414104,1773581434937,-1045.7179241,0.000199,2]
[408414105,1773581434946,-5533.0,0.000199,3]
[408414106,1773581434956,-17129.49618207,0.0001995,15]
[408414107,1773581434967,-151.0,0.00019997,2]
[408414108,1773581434976,-1062.77697115,0.00019999,5]
[408414109,1773581434985,-500.0,0.00019999,2]
[408414110,1773581434994,-500.0,0.00019999,2]
[408414111,1773581435004,-500.0,0.00019999,2]
[408414112,1773581435014,-500.0,0.00019999,2]
[408414113,1773581435024,-500.0,0.00019999,2]
[408414114,1773581435033,-500.0,0.00019999,2]
[408414115,1773581435042,-500.0,0.00019999,2]
[408414116,1773581435052,-500.0,0.00019999,2]
[408414117,1773581435061,-500.0,0.00019999,2]
[408414118,1773581435071,-500.0,0.00019999,2]
[408414119,1773581435081,-546.14810705,0.00019999,2]
[408414120,1773581435091,-1280.83,0.00019999,2]
[408414121,1773581435100,-190.30638221,0.0002,2]
[408414122,1773581435110,-318.0,0.0002,2]
[408414123,1773581435119,-300.0,0.0002,2]
[408414124,1773581435128,-156734.79680863,0.0002,2]
[408414125,1773581435145,-69775.54643193,0.0002,2]
[408414126,1773581435156,-117783.76788144,0.0002,2]
[408414127,1773581435168,-1380.09438079,0.0002,2]
[408414128,1773581435179,-1351.14592439,0.0002,2]
[408414129,1773581435192,-1670.86245039,0.0002,2]
[408414130,1773581435204,-911.19119324,0.0002,2]
[408414134,1773581437654,-151.0,0.00018493,2]
[408414135,1773581437664,-151.0,0.00018493,2]
[408414136,1773581437673,-1399.67783734,0.0002,2]
[408414137,1773581437685,-1196.5038662,0.0002,2]
[408414138,1773581437697,-426.21252913,0.0002,2]
[408414139,1773581437711,-1901.9789973,0.0002,2]
[408414140,1773581437770,-2190.42,0.0002,2]
[408414141,1773581437782,-15341.31009485,0.0002,2]
[408414165,1773581439859,-151.0,0.00018493,2]
[408414166,1773581439869,-151.0,0.00018493,2]
[408414167,1773581439879,-3183.0,0.0002,2]
[408414168,1773581440131,-8795.07659093,0.0002,2]
[408414169,1773581440143,-8947.21879473,0.0002,2]
[408414170,1773581440155,-8943.78386462,0.0002,2]
[408414171,1773581440166,-9077.54866152,0.0002,2]
[408414172,1773581440410,-151.0,0.00018493,2]
[408414173,1773581440420,-13239.316375,0.0002,2]
[408414174,1773581440431,-1211.0,0.0002,2]
[408414184,1773581445202,-151.0,0.00018493,2]
[408414185,1773581445211,-151.0,0.00018493,2]
[408414186,1773581445222,-293.374509,0.00018493,2]
[408414187,1773581445232,-70608.23427207,0.0002,2]
[408414188,1773581445268,-92.82562523,0.0002,2]
[408414189,1773581445279,-4375.05702322,0.0002,2]
[408414190,1773581445291,-9759.20420737,0.0002,2]
[408414191,1773581445305,-657.9124419,0.0002,2]
[408414199,1773581445599,-21777.121834,0.0002,2]
[408414200,1773581445657,-699.27,0.0002,2]
[408414201,1773581445939,-10654.11512108,0.0002,2]
[408414202,1773581445952,-1826.54343262,0.0002,2]
[408414203,1773581445963,-503.67294602,0.0002,2]
[408414204,1773581445974,-5179.70175118,0.0002,2]
[408414205,1773581445985,-418.76,0.0002,2]
[408414207,1773581446007,-157779.10603297,0.0002,2]
[408414212,1773582425131,-381.99000001,0.00015295,2]
[408414213,1773582554126,-2000.0,0.000148,2]
[408414214,1773582554149,-600.0,0.00014995,2]
[408414215,1773582554170,-166.66,0.0001519,2]
[408414216,1773582554190,-118.00999999,0.00015295,2]
[408414217,1773582554211,-173.01051565,0.0001537,2]
[408414218,1773582554232,-300.0,0.00015379,2]
[408414219,1773582554252,-279.0,0.00015464,2]
[408414220,1773582554272,-300.0,0.0001547,2]
[408414221,1773582554292,-203.46396901,0.0001547,2]
[408414222,1773582554312,-700.62114221,0.0001557,2]
[408414223,1773582554332,-707.77338314,0.00015572,2]
[408414229,1773582631796,-1772.60697999,0.00014896,2]
[408414230,1773582631807,-387.26946028,0.00014896,2]
[408414231,1773582631829,-289.88510599,0.00014896,2]
[408414232,1773582631840,-12014.69845374,0.00014896,2]
[408414233,1773582631849,-1200.0,0.00015572,2]
[408414234,1773582631858,-600.0,0.00015572,2]
[408414235,1773582631867,-500.0,0.00015573,2]
[408414236,1773582631876,-500.0,0.00015573,2]
[408414237,1773582631886,-500.0,0.00015573,2]
[408414238,1773582631895,-500.0,0.00015573,2]
[408414239,1773582631904,-500.0,0.00015573,2]
[408414240,1773582631914,-500.0,0.00015573,2]
[408414241,1773582631923,-332.58199131,0.00015573,2]
[408414242,1773582631932,-500.0,0.00015573,2]
[408414243,1773582631942,-500.0,0.00015573,2]
[408414244,1773582631951,-500.0,0.00015573,2]
[408414245,1773582631960,-500.0,0.00015573,2]
[408414246,1773582631969,-843.3809,0.0001558,2]
[408414247,1773582631979,-49678.7711,0.0001558,2]
[408414248,1773582631988,-2092.3788,0.0001558,2]
[408414249,1773582631997,-2500.0,0.0001558,2]
[408414250,1773582632007,-396.54535372,0.0001558,2]
[408414251,1773582632016,-5682.62677661,0.0001558,2]
[408414252,1773582632025,-7676.34177738,0.0001558,2]
[408414253,1773582632034,-10600.99861998,0.0001558,2]
[408414254,1773582632043,-600.0,0.00015581,2]
[408414255,1773582632051,-600.0,0.00015581,2]
[408414256,1773582632061,-600.0,0.000156,5]
[408414257,1773582632070,-1944.3742,0.00015644,2]
[408414258,1773582632079,-218.26158172,0.0001567,2]
[408414259,1773582632088,-693.56,0.0001567,3]
[408414260,1773582632097,-200.0,0.0001567,2]
[408414261,1773582632107,-151.0,0.0001567,2]
[408414262,1773582632115,-151.0,0.0001567,2]
[408414263,1773582632124,-151.0,0.0001567,2]
[408414264,1773582632134,-151.0,0.0001567,2]
[408414265,1773582632143,-151.0,0.0001567,2]
[408414266,1773582632152,-151.0,0.0001567,2]
[408414267,1773582632161,-151.0,0.0001567,2]
[408414268,1773582632171,-300.71717058,0.0001567,2]
[408414269,1773582632179,-500.0,0.00015673,2]
[408414270,1773582632188,-500.0,0.00015673,2]
[408414271,1773582632199,-500.0,0.00015673,2]
[408414272,1773582632208,-500.0,0.00015673,2]
[408414273,1773582632217,-500.0,0.00015673,2]
[408414274,1773582632227,-177.87,0.00015679,2]
[408414275,1773582632235,-361.61483663,0.00015679,2]
[408414276,1773582632245,-500.0,0.00015679,2]
[408414277,1773582632254,-500.0,0.00015679,2]
[408414278,1773582632263,-500.0,0.00015679,2]
[408414279,1773582632272,-500.0,0.00015679,2]
[408414280,1773582632281,-500.0,0.00015679,2]
[408414281,1773582632290,-629.6787941,0.00015679,2]
[408414282,1773582632299,-165.47444114,0.00015679,2]
[408414283,1773582632309,-500.0,0.00015679,2]
[408414284,1773582632318,-425.80439307,0.00015679,2]
[408414285,1773582632327,-2350.045,0.00015679,2]
[408414286,1773582632336,-500.0,0.00015679,2]
[408414287,1773582632345,-500.0,0.00015679,2]
[408414288,1773582632354,-500.0,0.00015679,2]
[408414289,1773582632363,-531.39263306,0.00015679,2]
[408414290,1773582632372,-500.0,0.00015679,2]
[408414291,1773582632382,-500.0,0.00015679,2]
[408414292,1773582632391,-500.0,0.00015679,2]
[408414293,1773582632400,-500.0,0.00015679,2]
[408414294,1773582632410,-500.0,0.00015679,2]
[408414295,1773582632420,-503.87098244,0.00015679,2]
[408414296,1773582632431,-147801.5348622,0.0001568,2]
[408414299,1773582637815,-500.0,0.0001568,2]
[408414300,1773582637826,-2554.11200172,0.0001568,2]
[408414301,1773582637837,-1629.36782101,0.0001568,2]
[408414302,1773582637848,-1217.95060179,0.0001568,2]
[408414303,1773582637859,-430.43450719,0.0001568,2]
[408414304,1773582637870,-1169.37130905,0.0001568,2]
[408414305,1773582637886,-498.26980224,0.0001568,2]
[408414306,1773582637896,-478.56970088,0.0001568,2]
[408414307,1773582637932,-22343.450597,0.0001568,2]
[408414308,1773582637990,-500.0,0.0001568,2]
[408414317,1773582639893,-342.26322073,0.0001568,2]
[408414320,1773582639904,-8795.07659093,0.0001568,2]
[408414321,1773582639915,-8947.21879473,0.0001568,2]
[408414322,1773582639925,-8943.78386462,0.0001568,2]
[408414323,1773582639935,-9077.54866152,0.0001568,2]
[408414324,1773582640009,-590.0917593,0.0001568,2]
[408414325,1773582640187,-540.43249539,0.0001568,2]
[408414326,1773582640198,-1284.39640345,0.0001568,2]
[408414327,1773582640244,-1427.98217578,0.0001568,2]
[408414343,1773582641696,-486.0,0.000157,5]
[408414350,1773582642906,-13384.86122401,0.0001568,2]
[408414351,1773582642918,-3273.65569076,0.0001568,2]
[408414352,1773582643016,-681.58,0.0001568,2]
[408414353,1773582643073,-576.92,0.0001568,2]
[408414360,1773582645730,-63515.6996924,0.0001568,2]
[408414361,1773582645741,-713.41801991,0.0001568,2]
[408414362,1773582645794,-11057.62980143,0.0001568,2]
[408414363,1773582645806,-365.235,0.0001568,2]
[408414364,1773582646013,-1937.5885294,0.0001568,2]
[408414365,1773582646071,-417.74,0.0001568,2]
[408414366,1773582646082,-153831.29708548,0.0001568,2]
[408414408,1773582925701,5301.66,0.00011698,2]
[408414493,1773583353858,10000.0,0.0002,120]
[408414494,1773583356610,10000.01,9.5e-05,3]
[408414495,1773583356640,10000.01,9.5e-05,3]
[408414496,1773583356669,10000.01,9.5e-05,3]
[408414497,1773583356693,10000.01,9.5e-05,3]
[408414498,1773583356717,10000.01,9.5e-05,3]
[408414499,1773583356741,10000.01,9.5e-05,3]
[408414500,1773583356764,10000.01,9.5e-05,3]
[408414501,1773583356788,4588.33895227,9.5e-05,3]
[408414503,1773583370671,10000.0,0.0002,120]
[408414526,1773583383793,10000.0,0.0002,120]
[408414614,1773583538979,-258.035668,0.00011911,2]
[408414615,1773583539069,-164.04205794,0.00011911,2]
[408414616,1773583539169,-722.8955016,0.00011911,2]
[408414625,1773583831902,-2163.72677246,0.00011911,2]
[408414627,1773583831912,-469.23702934,0.00012199,2]
[408414628,1773583831926,-733.12922089,0.00012199,2]
[408414629,1773583831936,-250.0,0.00013102,2]
[408414630,1773583831945,-250.0,0.00013102,2]
[408414631,1773583831955,-250.0,0.00013102,2]
[408414632,1773583831965,-1072.49509534,0.00013848,2]
[408414636,1773583832204,-1293.70137118,0.00013848,2]
[408414637,1773583832214,-722.10350301,0.00013908,2]
[408414638,1773583832225,-477.89649699,0.00013908,2]
[408414639,1773583832235,-200.0,0.00013909,2]
[408414640,1773583832245,-166.66,0.00013918,2]
[408414641,1773583832254,-1059.51,0.00013921,2]
[408414642,1773583832264,-300.0,0.00013934,2]
[408414643,1773583832274,-300.0,0.00013934,2]
[408414644,1773583832283,-300.0,0.00013935,2]
[408414645,1773583832292,-1200.0,0.00013936,2]
[408414646,1773583832302,-11394.96,0.00013938,2]
[408414647,1773583832312,-824.42530788,0.00014,2]
[408414648,1773583832321,-878.0,0.00014093,2]
[408414649,1773583832330,-1731.0,0.00014121,2]
[408414650,1773583832342,-1081.0,0.00014127,2]
[408414651,1773583832352,-247.0,0.00014155,2]
[408414652,1773583832361,-1483.0,0.00014184,2]
[408414653,1773583832371,-166.66,0.00014211,2]
[408414654,1773583832380,-416.0,0.00014354,2]
[408414655,1773583832390,-228.0,0.00014354,2]
[408414656,1773583832399,-153.0,0.00014382,2]
[408414657,1773583832409,-328.0,0.00014382,2]
[408414658,1773583832418,-3227.5844775,0.0001439,2]
[408414659,1773583832427,-305.0,0.00014417,2]
[408414660,1773583832436,-476.0,0.00014437,2]
[408414661,1773583832445,-287.0,0.00014466,2]
[408414662,1773583832454,-166.66,0.00014504,2]
[408414663,1773583832464,-483.0,0.00014511,2]
[408414664,1773583832654,-150.0,0.00014511,2]
[408414665,1773583832668,-408.46909781,0.0001455,2]
[408414666,1773583832678,-3240.0,0.00014616,2]
[408414667,1773583832687,-200.0,0.00014628,2]
[408414668,1773583832696,-151.0,0.00014628,2]
[408414669,1773583832706,-500.0,0.00014628,2]
[408414670,1773583832715,-151.0,0.00014628,2]
[408414671,1773583832725,-151.0,0.00014628,2]
[408414672,1773583832735,-500.0,0.00014628,2]
[408414673,1773583832743,-151.0,0.00014628,2]
[408414674,1773583832753,-500.0,0.00014628,2]
[408414675,1773583832762,-151.0,0.00014628,2]
[408414676,1773583832772,-500.0,0.00014628,2]
[408414677,1773583832782,-500.0,0.00014628,2]
[408414678,1773583832790,-195.2163949,0.00014628,2]
[408414679,1773583832800,-151.0,0.00014628,2]
[408414680,1773583832810,-500.0,0.00014628,2]
[408414681,1773583832819,-151.0,0.00014628,2]
[408414682,1773583832828,-500.0,0.00014628,2]
[408414683,1773583832838,-151.0,0.00014628,2]
[408414684,1773583832847,-500.0,0.00014628,2]
[408414685,1773583832856,-500.0,0.00014628,2]
[408414686,1773583832865,-500.0,0.00014628,2]